[Event "Titled Tuesday Blitz January 03 Early 2023"]
[White "Goryachkina, Aleksandra"]
[Black "Makarian, Rudik"]
[WhiteFideId "4147103"]
[BlackFideId "44105681"]
[WhiteElo "2571"]
[BlackElo "2545"]
[Result "1/2-1/2"]
[Round "03"]
[TimeControl "180+2"]
[Date "2023.01.03"]
[WhiteClock "0:00:05"]
[BlackClock "0:00:13"]

1. e4 {[%clk 0:02:59]}  e5 {[%clk 0:02:57]} 2. Nf3 {[%clk 0:02:59]}  Nc6 {[%clk 0:02:58]} 3. d4 {[%clk 0:02:56]}  exd4 {[%clk 0:02:57]} 4. Bc4 {[%clk 0:02:56]}  Nf6 {[%clk 0:02:48]} 5. O-O {[%clk 0:02:55]}  Nxe4 {[%clk 0:02:45]} 6. Re1 {[%clk 0:02:55]}  d5 {[%clk 0:02:45]} 7. Bxd5 {[%clk 0:02:55]}  Qxd5 {[%clk 0:02:46]} 8. Nc3 {[%clk 0:02:55]}  Qf5 {[%clk 0:02:03]} 9. Nxe4 {[%clk 0:02:46]}  Be6 {[%clk 0:02:02]} 10. Nxd4 {[%clk 0:02:30]}  Nxd4 {[%clk 0:01:59]} 11. Qxd4 {[%clk 0:02:30]}  Be7 {[%clk 0:01:59]} 12. Ng3 {[%clk 0:02:14]}  Qg4 {[%clk 0:01:18]} 13. Qxg4 {[%clk 0:01:27]}  Bxg4 {[%clk 0:01:19]} 14. Bf4 {[%clk 0:01:26]}  Be6 {[%clk 0:00:59]} 15. Bxc7 {[%clk 0:01:20]}  Rc8 {[%clk 0:00:59]} 16. Be5 {[%clk 0:01:18]}  Rxc2 {[%clk 0:00:59]} 17. Bxg7 {[%clk 0:01:13]}  Rg8 {[%clk 0:01:00]} 18. Bd4 {[%clk 0:01:13]}  a5 {[%clk 0:00:52]} 19. a3 {[%clk 0:01:11]}  Rg4 {[%clk 0:00:50]} 20. Bc3 {[%clk 0:01:09]}  Rc4 {[%clk 0:00:45]} 21. Rac1 {[%clk 0:01:01]}  Rxc1 {[%clk 0:00:45]} 22. Rxc1 {[%clk 0:01:01]}  b5 {[%clk 0:00:44]} 23. Ne2 {[%clk 0:00:56]}  b4 {[%clk 0:00:38]} 24. axb4 {[%clk 0:00:56]}  axb4 {[%clk 0:00:39]} 25. Bd4 {[%clk 0:00:55]}  Kd7 {[%clk 0:00:36]} 26. Rxc4 {[%clk 0:00:47]}  Bxc4 {[%clk 0:00:37]} 27. Kf1 {[%clk 0:00:24]}  Kc6 {[%clk 0:00:38]} 28. Ke1 {[%clk 0:00:24]}  Kb5 {[%clk 0:00:36]} 29. Kd2 {[%clk 0:00:22]}  Bg5+ {[%clk 0:00:25]} 30. f4 {[%clk 0:00:17]}  Bh6 {[%clk 0:00:20]} 31. g3 {[%clk 0:00:17]}  Ka4 {[%clk 0:00:16]} 32. Nc1 {[%clk 0:00:17]}  f5 {[%clk 0:00:14]} 33. Kc2 {[%clk 0:00:16]}  b3+ {[%clk 0:00:12]} 34. Kc3 {[%clk 0:00:15]}  Bd5 {[%clk 0:00:12]} 35. Nd3 {[%clk 0:00:15]}  Bf8 {[%clk 0:00:13]} 36. Nc5+ {[%clk 0:00:14]}  Bxc5 {[%clk 0:00:12]} 37. Bxc5 {[%clk 0:00:14]}  Kb5 {[%clk 0:00:13]} 38. Kd4 {[%clk 0:00:14]}  Be4 {[%clk 0:00:11]} 39. Bf8 {[%clk 0:00:14]}  h5 {[%clk 0:00:10]} 40. Ke5 {[%clk 0:00:07]}  Kc4 {[%clk 0:00:10]} 41. h3 {[%clk 0:00:06]}  Kd3 {[%clk 0:00:08]} 42. Kf6 {[%clk 0:00:04]}  Ke3 {[%clk 0:00:08]} 43. Kg5 {[%clk 0:00:03]}  Kf3 {[%clk 0:00:08]} 44. Kxh5 {[%clk 0:00:03]}  Kxg3 {[%clk 0:00:08]} 45. Kg5 {[%clk 0:00:04]}  Kxh3 {[%clk 0:00:08]} 46. Bg7 {[%clk 0:00:04]}  Kg3 {[%clk 0:00:09]} 47. Bf6 {[%clk 0:00:04]}  Kf3 {[%clk 0:00:10]} 48. Bg7 {[%clk 0:00:05]}  Kg3 {[%clk 0:00:11]} 49. Bf6 {[%clk 0:00:05]}  Kf3 {[%clk 0:00:12]} 50. Bg7 {[%clk 0:00:05]}  Kg3 {[%clk 0:00:13]} 1/2-1/2


[Site "https://www.chess.com"]

[Event "Titled Tuesday Blitz January 03 Early 2023"]
[White "Xu, Yi"]
[Black "Aradhya, Garg"]
[WhiteFideId "8605564"]
[BlackFideId "25006746"]
[WhiteElo "2527"]
[BlackElo "2284"]
[Result "1-0"]
[Round "03"]
[TimeControl "180+2"]
[Date "2023.01.03"]
[WhiteClock "0:00:18"]
[BlackClock "0:00:01"]

1. e4 {[%clk 0:02:56]}  e5 {[%clk 0:02:59]} 2. Nf3 {[%clk 0:02:57]}  Nc6 {[%clk 0:02:59]} 3. Bc4 {[%clk 0:02:57]}  Nf6 {[%clk 0:02:57]} 4. d3 {[%clk 0:02:57]}  Bc5 {[%clk 0:02:54]} 5. O-O {[%clk 0:02:58]}  O-O {[%clk 0:02:53]} 6. c3 {[%clk 0:02:58]}  d5 {[%clk 0:02:53]} 7. exd5 {[%clk 0:02:58]}  Nxd5 {[%clk 0:02:54]} 8. Re1 {[%clk 0:02:58]}  Bg4 {[%clk 0:02:50]} 9. a4 {[%clk 0:02:55]}  a5 {[%clk 0:02:35]} 10. Nbd2 {[%clk 0:02:51]}  Nb6 {[%clk 0:02:35]} 11. h3 {[%clk 0:02:48]}  Bh5 {[%clk 0:02:33]} 12. Bb5 {[%clk 0:02:45]}  Bd6 {[%clk 0:02:26]} 13. Ne4 {[%clk 0:02:44]}  f5 {[%clk 0:02:24]} 14. Ng3 {[%clk 0:02:35]}  Bxf3 {[%clk 0:02:16]} 15. Qxf3 {[%clk 0:02:36]}  Qd7 {[%clk 0:02:16]} 16. Be3 {[%clk 0:02:19]}  e4 {[%clk 0:01:54]} 17. Qe2 {[%clk 0:01:47]}  f4 {[%clk 0:00:57]} 18. Bxb6 {[%clk 0:01:47]}  cxb6 {[%clk 0:00:57]} 19. Nxe4 {[%clk 0:01:28]}  f3 {[%clk 0:00:56]} 20. Qf1 {[%clk 0:01:28]}  fxg2 {[%clk 0:00:51]} 21. Qxg2 {[%clk 0:01:28]}  Kh8 {[%clk 0:00:51]} 22. Nxd6 {[%clk 0:01:22]}  Qxd6 {[%clk 0:00:50]} 23. Bxc6 {[%clk 0:01:20]}  bxc6 {[%clk 0:00:49]} 24. Re3 {[%clk 0:01:20]}  Rae8 {[%clk 0:00:43]} 25. Rae1 {[%clk 0:01:17]}  Rxe3 {[%clk 0:00:41]} 26. Rxe3 {[%clk 0:01:18]}  h6 {[%clk 0:00:34]} 27. Qg3 {[%clk 0:01:11]}  Qd7 {[%clk 0:00:27]} 28. b3 {[%clk 0:00:59]}  Rf6 {[%clk 0:00:20]} 29. Rf3 {[%clk 0:00:47]}  Re6 {[%clk 0:00:19]} 30. Qf4 {[%clk 0:00:43]}  Kh7 {[%clk 0:00:19]} 31. Qf5+ {[%clk 0:00:40]}  Rg6+ {[%clk 0:00:18]} 32. Kf1 {[%clk 0:00:37]}  Qxf5 {[%clk 0:00:16]} 33. Rxf5 {[%clk 0:00:37]}  Re6 {[%clk 0:00:11]} 34. Rf4 {[%clk 0:00:32]}  Kg6 {[%clk 0:00:08]} 35. Re4 {[%clk 0:00:32]}  Rd6 {[%clk 0:00:08]} 36. Ke2 {[%clk 0:00:32]}  Kf6 {[%clk 0:00:06]} 37. Ke3 {[%clk 0:00:32]}  g5 {[%clk 0:00:06]} 38. f4 {[%clk 0:00:24]}  b5 {[%clk 0:00:03]} 39. fxg5+ {[%clk 0:00:22]}  hxg5 {[%clk 0:00:02]} 40. h4 {[%clk 0:00:22]}  gxh4 {[%clk 0:00:01]} 41. Rxh4 {[%clk 0:00:22]}  Ke7 {[%clk 0:00:01]} 42. Rh7+ {[%clk 0:00:22]}  Kd8 {[%clk 0:00:01]} 43. axb5 {[%clk 0:00:18]} 1-0


[Site "https://www.chess.com"]

[Event "Titled Tuesday Blitz January 03 Early 2023"]
[White "Arabidze, Meri"]
[Black "Zhigalko, Sergei"]
[WhiteFideId "13604040"]
[BlackFideId "13502956"]
[WhiteElo "2441"]
[BlackElo "2572"]
[Result "1/2-1/2"]
[Round "03"]
[TimeControl "180+2"]
[Date "2023.01.03"]
[WhiteClock "0:00:15"]
[BlackClock "0:00:04"]

1. d4 {[%clk 0:03:00]}  Nf6 {[%clk 0:03:00]} 2. c4 {[%clk 0:03:00]}  e6 {[%clk 0:03:00]} 3. Nf3 {[%clk 0:02:59]}  b6 {[%clk 0:03:00]} 4. g3 {[%clk 0:02:59]}  Ba6 {[%clk 0:03:00]} 5. Qa4 {[%clk 0:02:59]}  Bb7 {[%clk 0:03:00]} 6. Bg2 {[%clk 0:02:59]}  c5 {[%clk 0:03:01]} 7. dxc5 {[%clk 0:03:00]}  bxc5 {[%clk 0:03:01]} 8. O-O {[%clk 0:03:00]}  Be7 {[%clk 0:03:01]} 9. Nc3 {[%clk 0:03:01]}  O-O {[%clk 0:03:01]} 10. Bf4 {[%clk 0:03:00]}  Qb6 {[%clk 0:03:01]} 11. Rfd1 {[%clk 0:02:58]}  Rd8 {[%clk 0:03:00]} 12. Rd2 {[%clk 0:02:55]}  d6 {[%clk 0:02:59]} 13. Rad1 {[%clk 0:02:51]}  h6 {[%clk 0:02:59]} 14. h3 {[%clk 0:02:49]}  Ne8 {[%clk 0:02:46]} 15. g4 {[%clk 0:02:34]}  Nd7 {[%clk 0:02:43]} 16. Qb5 {[%clk 0:02:28]}  Qc7 {[%clk 0:02:42]} 17. Qb3 {[%clk 0:02:22]}  a6 {[%clk 0:02:41]} 18. Qc2 {[%clk 0:02:15]}  Bc6 {[%clk 0:02:37]} 19. b3 {[%clk 0:02:10]}  Qb7 {[%clk 0:02:33]} 20. Ne1 {[%clk 0:01:50]}  Bxg2 {[%clk 0:02:30]} 21. Nxg2 {[%clk 0:01:51]}  Ndf6 {[%clk 0:02:25]} 22. Bg3 {[%clk 0:01:44]}  Rac8 {[%clk 0:02:11]} 23. Ne3 {[%clk 0:01:41]}  Qc6 {[%clk 0:02:07]} 24. Qb1 {[%clk 0:01:39]}  Rd7 {[%clk 0:02:03]} 25. Qd3 {[%clk 0:01:39]}  Rcd8 {[%clk 0:02:03]} 26. Qc2 {[%clk 0:01:32]}  Bf8 {[%clk 0:01:50]} 27. Bh4 {[%clk 0:01:28]}  Rc8 {[%clk 0:01:44]} 28. Bg3 {[%clk 0:01:21]}  Be7 {[%clk 0:01:38]} 29. Bh4 {[%clk 0:01:21]}  Rcd8 {[%clk 0:01:34]} 30. Bg3 {[%clk 0:01:21]}  Nh7 {[%clk 0:01:33]} 31. Qe4 {[%clk 0:01:19]}  Qc8 {[%clk 0:01:32]} 32. Qg2 {[%clk 0:01:17]}  Bg5 {[%clk 0:01:21]} 33. Rd3 {[%clk 0:01:12]}  Bf6 {[%clk 0:01:13]} 34. Na4 {[%clk 0:01:11]}  Qc7 {[%clk 0:01:06]} 35. h4 {[%clk 0:01:03]}  Qa5 {[%clk 0:01:02]} 36. Qc6 {[%clk 0:00:55]}  Be7 {[%clk 0:00:49]} 37. Qb6 {[%clk 0:00:42]}  Qxb6 {[%clk 0:00:49]} 38. Nxb6 {[%clk 0:00:43]}  Rb7 {[%clk 0:00:48]} 39. Na4 {[%clk 0:00:43]}  Rc8 {[%clk 0:00:48]} 40. Kg2 {[%clk 0:00:39]}  Nhf6 {[%clk 0:00:47]} 41. Kh3 {[%clk 0:00:39]}  Ne4 {[%clk 0:00:46]} 42. f3 {[%clk 0:00:33]}  Nxg3 {[%clk 0:00:45]} 43. Kxg3 {[%clk 0:00:28]}  g6 {[%clk 0:00:45]} 44. Nc3 {[%clk 0:00:25]}  Kg7 {[%clk 0:00:45]} 45. Ne4 {[%clk 0:00:25]}  Rb6 {[%clk 0:00:45]} 46. Nc3 {[%clk 0:00:24]}  Rbc6 {[%clk 0:00:44]} 47. Ne4 {[%clk 0:00:24]}  Rb8 {[%clk 0:00:42]} 48. g5 {[%clk 0:00:24]}  Rd8 {[%clk 0:00:33]} 49. f4 {[%clk 0:00:24]}  h5 {[%clk 0:00:32]} 50. Nc3 {[%clk 0:00:23]}  Nc7 {[%clk 0:00:31]} 51. Kf3 {[%clk 0:00:22]}  Kf8 {[%clk 0:00:30]} 52. Nc2 {[%clk 0:00:22]}  f5 {[%clk 0:00:18]} 53. e4 {[%clk 0:00:20]}  fxe4+ {[%clk 0:00:13]} 54. Kxe4 {[%clk 0:00:21]}  Ke8 {[%clk 0:00:09]} 55. Kf3 {[%clk 0:00:21]}  Na8 {[%clk 0:00:06]} 56. Ne3 {[%clk 0:00:22]}  Nb6 {[%clk 0:00:06]} 57. Ne4 {[%clk 0:00:22]}  Nc8 {[%clk 0:00:06]} 58. Nc3 {[%clk 0:00:22]}  Rc7 {[%clk 0:00:04]} 59. Ne4 {[%clk 0:00:22]}  Rc6 {[%clk 0:00:04]} 60. Nc3 {[%clk 0:00:22]}  Rc7 {[%clk 0:00:04]} 61. Ne4 {[%clk 0:00:22]}  Rcd7 {[%clk 0:00:05]} 62. Nc3 {[%clk 0:00:21]}  Nb6 {[%clk 0:00:05]} 63. Ke4 {[%clk 0:00:21]}  Kf7 {[%clk 0:00:05]} 64. Kf3 {[%clk 0:00:20]}  Ke8 {[%clk 0:00:06]} 65. Ke4 {[%clk 0:00:20]}  Kf7 {[%clk 0:00:06]} 66. Kf3 {[%clk 0:00:21]}  Bf8 {[%clk 0:00:06]} 67. Ke4 {[%clk 0:00:21]}  Bg7 {[%clk 0:00:07]} 68. Kf3 {[%clk 0:00:18]}  Bd4 {[%clk 0:00:06]} 69. Nc2 {[%clk 0:00:16]}  Bg7 {[%clk 0:00:05]} 70. Ne4 {[%clk 0:00:16]}  Bf8 {[%clk 0:00:04]} 71. Ne3 {[%clk 0:00:15]}  Be7 {[%clk 0:00:04]} 72. Nc3 {[%clk 0:00:15]} 1/2-1/2


[Site "https://www.chess.com"]

[Event "Titled Tuesday Blitz January 03 Early 2023"]
[White "Sethuraman, S.P."]
[Black "Mustafayev, Farid"]
[WhiteFideId "5021596"]
[BlackFideId "13408771"]
[WhiteElo "2626"]
[BlackElo "2316"]
[Result "1-0"]
[Round "03"]
[TimeControl "180+2"]
[Date "2023.01.03"]
[WhiteClock "0:00:52"]
[BlackClock "0:00:48"]

1. c4 {[%clk 0:03:00]}  c5 {[%clk 0:02:57]} 2. Nc3 {[%clk 0:03:00]}  Nf6 {[%clk 0:02:57]} 3. Nf3 {[%clk 0:02:59]}  e6 {[%clk 0:02:58]} 4. d4 {[%clk 0:02:58]}  cxd4 {[%clk 0:02:57]} 5. Nxd4 {[%clk 0:02:59]}  a6 {[%clk 0:02:58]} 6. g3 {[%clk 0:02:59]}  Nc6 {[%clk 0:02:54]} 7. Bg2 {[%clk 0:02:58]}  Be7 {[%clk 0:02:53]} 8. O-O {[%clk 0:02:57]}  O-O {[%clk 0:02:54]} 9. Nb3 {[%clk 0:02:57]}  b6 {[%clk 0:02:52]} 10. Nd5 {[%clk 0:02:53]}  exd5 {[%clk 0:02:18]} 11. cxd5 {[%clk 0:02:54]}  Bb7 {[%clk 0:02:19]} 12. d6 {[%clk 0:02:51]}  Re8 {[%clk 0:02:20]} 13. dxe7 {[%clk 0:02:49]}  Qxe7 {[%clk 0:02:20]} 14. Be3 {[%clk 0:02:48]}  Na5 {[%clk 0:01:52]} 15. Bxb7 {[%clk 0:02:07]}  Nxb7 {[%clk 0:01:53]} 16. Bxb6 {[%clk 0:02:07]}  Qxe2 {[%clk 0:01:54]} 17. Qxe2 {[%clk 0:02:07]}  Rxe2 {[%clk 0:01:55]} 18. Bd4 {[%clk 0:02:08]}  Nd6 {[%clk 0:01:47]} 19. Rfd1 {[%clk 0:01:57]}  Nb5 {[%clk 0:01:45]} 20. Bxf6 {[%clk 0:01:51]}  gxf6 {[%clk 0:01:46]} 21. Rab1 {[%clk 0:01:52]}  Rc8 {[%clk 0:01:44]} 22. a4 {[%clk 0:01:49]}  Nc7 {[%clk 0:01:38]} 23. Nd4 {[%clk 0:01:47]}  Re5 {[%clk 0:01:36]} 24. Rbc1 {[%clk 0:01:45]}  Rd5 {[%clk 0:01:26]} 25. b3 {[%clk 0:01:22]}  Kf8 {[%clk 0:01:09]} 26. Rc4 {[%clk 0:01:17]}  Ke8 {[%clk 0:01:06]} 27. Rd3 {[%clk 0:00:59]}  Kd8 {[%clk 0:01:00]} 28. Rf3 {[%clk 0:00:59]}  Ne8 {[%clk 0:00:51]} 29. Rxc8+ {[%clk 0:00:52]}  Kxc8 {[%clk 0:00:52]} 30. Nf5 {[%clk 0:00:53]}  Nd6 {[%clk 0:00:48]} 31. Ne7+ {[%clk 0:00:52]} 1-0


[Site "https://www.chess.com"]

[Event "Titled Tuesday Blitz January 03 Early 2023"]
[White "Kozak, Adam"]
[Black "Rostomyan, Mikayel"]
[WhiteFideId "753246"]
[BlackFideId "13313754"]
[WhiteElo "2572"]
[BlackElo "2222"]
[Result "1-0"]
[Round "03"]
[TimeControl "180+2"]
[Date "2023.01.03"]
[WhiteClock "0:00:42"]
[BlackClock "0:00:03"]

1. c4 {[%clk 0:02:58]}  e5 {[%clk 0:02:59]} 2. Nc3 {[%clk 0:02:58]}  Bb4 {[%clk 0:02:59]} 3. Nf3 {[%clk 0:02:57]}  Bxc3 {[%clk 0:02:59]} 4. dxc3 {[%clk 0:02:57]}  d6 {[%clk 0:03:00]} 5. e4 {[%clk 0:02:57]}  Ne7 {[%clk 0:02:57]} 6. Be2 {[%clk 0:02:56]}  Nbc6 {[%clk 0:02:57]} 7. O-O {[%clk 0:02:56]}  O-O {[%clk 0:02:56]} 8. Be3 {[%clk 0:02:53]}  f5 {[%clk 0:02:56]} 9. exf5 {[%clk 0:02:51]}  Nxf5 {[%clk 0:02:56]} 10. Qd2 {[%clk 0:02:41]}  Nxe3 {[%clk 0:02:54]} 11. Qxe3 {[%clk 0:02:42]}  Qf6 {[%clk 0:02:46]} 12. Rad1 {[%clk 0:02:26]}  b6 {[%clk 0:02:42]} 13. b4 {[%clk 0:02:20]}  a5 {[%clk 0:02:36]} 14. a3 {[%clk 0:02:17]}  axb4 {[%clk 0:02:34]} 15. axb4 {[%clk 0:02:18]}  Ne7 {[%clk 0:02:32]} 16. c5 {[%clk 0:02:14]}  bxc5 {[%clk 0:02:29]} 17. bxc5 {[%clk 0:02:14]}  Ba6 {[%clk 0:02:16]} 18. cxd6 {[%clk 0:02:03]}  cxd6 {[%clk 0:02:14]} 19. Bxa6 {[%clk 0:02:02]}  Rxa6 {[%clk 0:02:13]} 20. c4 {[%clk 0:02:03]}  Rc6 {[%clk 0:02:05]} 21. Nd2 {[%clk 0:02:02]}  Qf4 {[%clk 0:02:05]} 22. Qd3 {[%clk 0:01:57]}  Kh8 {[%clk 0:02:00]} 23. Ne4 {[%clk 0:01:42]}  Nf5 {[%clk 0:01:47]} 24. Qd5 {[%clk 0:01:42]}  Ra6 {[%clk 0:01:28]} 25. c5 {[%clk 0:01:38]}  dxc5 {[%clk 0:00:44]} 26. Nxc5 {[%clk 0:01:39]}  Ra5 {[%clk 0:00:39]} 27. Rde1 {[%clk 0:01:39]}  Qd4 {[%clk 0:00:34]} 28. Rxe5 {[%clk 0:01:33]}  Qxd5 {[%clk 0:00:32]} 29. Rxd5 {[%clk 0:01:30]}  Ne7 {[%clk 0:00:32]} 30. Rg5 {[%clk 0:01:27]}  h6 {[%clk 0:00:28]} 31. Ne6 {[%clk 0:01:25]}  Rxg5 {[%clk 0:00:20]} 32. Nxf8 {[%clk 0:01:25]}  Rd5 {[%clk 0:00:20]} 33. Ne6 {[%clk 0:01:25]}  Rd2 {[%clk 0:00:20]} 34. g3 {[%clk 0:01:19]}  Ng6 {[%clk 0:00:16]} 35. Rc1 {[%clk 0:01:15]}  Re2 {[%clk 0:00:16]} 36. Nd4 {[%clk 0:01:14]}  Rd2 {[%clk 0:00:16]} 37. Nf5 {[%clk 0:01:14]}  Rd5 {[%clk 0:00:14]} 38. g4 {[%clk 0:01:12]}  Rd7 {[%clk 0:00:11]} 39. f3 {[%clk 0:01:08]}  Kh7 {[%clk 0:00:12]} 40. h4 {[%clk 0:01:07]}  Ne7 {[%clk 0:00:12]} 41. Ng3 {[%clk 0:01:05]}  Ng6 {[%clk 0:00:12]} 42. h5 {[%clk 0:01:04]}  Ne5 {[%clk 0:00:12]} 43. Rc3 {[%clk 0:00:58]}  Rf7 {[%clk 0:00:09]} 44. Kg2 {[%clk 0:00:55]}  Rd7 {[%clk 0:00:08]} 45. Ne4 {[%clk 0:00:54]}  Re7 {[%clk 0:00:07]} 46. Kg3 {[%clk 0:00:54]}  Nf7 {[%clk 0:00:07]} 47. Rc5 {[%clk 0:00:49]}  Rd7 {[%clk 0:00:07]} 48. Rf5 {[%clk 0:00:47]}  Nd6 {[%clk 0:00:06]} 49. Rd5 {[%clk 0:00:47]}  Nxe4+ {[%clk 0:00:05]} 50. fxe4 {[%clk 0:00:48]}  Ra7 {[%clk 0:00:06]} 51. Kf4 {[%clk 0:00:48]}  Kg8 {[%clk 0:00:06]} 52. e5 {[%clk 0:00:47]}  Kf7 {[%clk 0:00:06]} 53. Kf5 {[%clk 0:00:47]}  Ke7 {[%clk 0:00:03]} 54. e6 {[%clk 0:00:44]}  Ra3 {[%clk 0:00:01]} 55. Rd7+ {[%clk 0:00:44]}  Ke8 {[%clk 0:00:02]} 56. Rxg7 {[%clk 0:00:42]}  Ra5+ {[%clk 0:00:03]} 57. Kg6 {[%clk 0:00:42]}  Re5 {[%clk 0:00:03]} 58. Kf6 {[%clk 0:00:41]}  Re4 {[%clk 0:00:03]} 59. Rg8# {[%clk 0:00:42]} 1-0


[Site "https://www.chess.com"]

[Event "Titled Tuesday Blitz January 03 Early 2023"]
[White "Kobalia, Mikhail"]
[Black "Suleymanli, Suleyman"]
[WhiteFideId "4119150"]
[BlackFideId "13416375"]
[WhiteElo "2578"]
[BlackElo "2269"]
[Result "0-1"]
[Round "03"]
[TimeControl "180+2"]
[Date "2023.01.03"]
[WhiteClock "0:00:04"]
[BlackClock "0:01:22"]

1. e4 {[%clk 0:03:00]}  e6 {[%clk 0:02:59]} 2. d3 {[%clk 0:02:59]}  d5 {[%clk 0:02:59]} 3. Nd2 {[%clk 0:03:00]}  c5 {[%clk 0:02:58]} 4. Ngf3 {[%clk 0:03:00]}  Nc6 {[%clk 0:02:58]} 5. g3 {[%clk 0:03:01]}  g6 {[%clk 0:02:58]} 6. Bg2 {[%clk 0:03:00]}  Bg7 {[%clk 0:02:58]} 7. O-O {[%clk 0:03:01]}  Nge7 {[%clk 0:02:57]} 8. Re1 {[%clk 0:03:01]}  O-O {[%clk 0:02:57]} 9. e5 {[%clk 0:03:01]}  Qc7 {[%clk 0:02:56]} 10. Qe2 {[%clk 0:03:01]}  b5 {[%clk 0:02:55]} 11. c3 {[%clk 0:02:59]}  a5 {[%clk 0:02:54]} 12. d4 {[%clk 0:02:52]}  cxd4 {[%clk 0:02:52]} 13. cxd4 {[%clk 0:02:51]}  Ba6 {[%clk 0:02:53]} 14. Nb3 {[%clk 0:02:47]}  a4 {[%clk 0:02:47]} 15. Nbd2 {[%clk 0:02:19]}  Nf5 {[%clk 0:02:46]} 16. Rb1 {[%clk 0:01:48]}  b4 {[%clk 0:02:31]} 17. Qd1 {[%clk 0:01:47]}  Ncxd4 {[%clk 0:02:31]} 18. Nxd4 {[%clk 0:01:40]}  Nxd4 {[%clk 0:02:31]} 19. Bf1 {[%clk 0:01:00]}  Nc2 {[%clk 0:02:14]} 20. Bxa6 {[%clk 0:00:58]}  Nxe1 {[%clk 0:02:15]} 21. Be2 {[%clk 0:00:58]}  Nc2 {[%clk 0:02:15]} 22. Nf3 {[%clk 0:00:58]}  b3 {[%clk 0:02:13]} 23. axb3 {[%clk 0:00:55]}  axb3 {[%clk 0:02:14]} 24. Bg5 {[%clk 0:00:54]}  Ra2 {[%clk 0:02:06]} 25. h4 {[%clk 0:00:54]}  Rfa8 {[%clk 0:02:03]} 26. Qd2 {[%clk 0:00:53]}  Bxe5 {[%clk 0:01:45]} 27. Nxe5 {[%clk 0:00:35]}  Qxe5 {[%clk 0:01:46]} 28. Kh2 {[%clk 0:00:15]}  Qd4 {[%clk 0:01:42]} 29. Bd3 {[%clk 0:00:09]}  Rxb2 {[%clk 0:01:25]} 30. Rxb2 {[%clk 0:00:05]}  Qxb2 {[%clk 0:01:25]} 31. Qf4 {[%clk 0:00:04]}  Qd4 {[%clk 0:01:22]} 0-1


[Site "https://www.chess.com"]

[Event "Titled Tuesday Blitz January 03 Early 2023"]
[White "Gunina, Valentina"]
[Black "Levitskiy, Andrey"]
[WhiteFideId "4167570"]
[BlackFideId "14132885"]
[WhiteElo "2469"]
[BlackElo "2304"]
[Result "1-0"]
[Round "03"]
[TimeControl "180+2"]
[Date "2023.01.03"]
[WhiteClock "0:01:13"]
[BlackClock "0:00:01"]

1. d4 {[%clk 0:03:00]}  Nf6 {[%clk 0:02:56]} 2. c4 {[%clk 0:03:00]}  e6 {[%clk 0:02:56]} 3. Nf3 {[%clk 0:03:00]}  Bb4+ {[%clk 0:02:54]} 4. Bd2 {[%clk 0:02:59]}  Qe7 {[%clk 0:02:54]} 5. e3 {[%clk 0:02:58]}  O-O {[%clk 0:02:45]} 6. Bd3 {[%clk 0:02:58]}  Bxd2+ {[%clk 0:02:44]} 7. Qxd2 {[%clk 0:02:58]}  d6 {[%clk 0:02:44]} 8. O-O {[%clk 0:02:58]}  e5 {[%clk 0:02:44]} 9. Bc2 {[%clk 0:02:52]}  Bg4 {[%clk 0:02:38]} 10. Nc3 {[%clk 0:02:49]}  Bxf3 {[%clk 0:02:33]} 11. gxf3 {[%clk 0:02:49]}  Nbd7 {[%clk 0:02:32]} 12. Kh1 {[%clk 0:02:46]}  c6 {[%clk 0:02:24]} 13. Rg1 {[%clk 0:02:46]}  Rfe8 {[%clk 0:02:09]} 14. f4 {[%clk 0:02:37]}  exf4 {[%clk 0:01:55]} 15. exf4 {[%clk 0:02:37]}  Nh5 {[%clk 0:01:55]} 16. Rg5 {[%clk 0:02:29]}  Ndf6 {[%clk 0:01:55]} 17. Rag1 {[%clk 0:02:28]}  g6 {[%clk 0:01:51]} 18. f5 {[%clk 0:02:24]}  Qf8 {[%clk 0:01:13]} 19. fxg6 {[%clk 0:02:22]}  fxg6 {[%clk 0:01:11]} 20. f4 {[%clk 0:02:07]}  Kh8 {[%clk 0:00:45]} 21. f5 {[%clk 0:02:07]}  gxf5 {[%clk 0:00:42]} 22. Bxf5 {[%clk 0:02:06]}  Qf7 {[%clk 0:00:37]} 23. d5 {[%clk 0:01:59]}  Rg8 {[%clk 0:00:34]} 24. Be6 {[%clk 0:01:58]}  Qe7 {[%clk 0:00:25]} 25. Bxg8 {[%clk 0:01:57]}  Rxg8 {[%clk 0:00:26]} 26. Rxg8+ {[%clk 0:01:57]}  Nxg8 {[%clk 0:00:26]} 27. Qd4+ {[%clk 0:01:57]}  Ngf6 {[%clk 0:00:24]} 28. b4 {[%clk 0:01:46]}  c5 {[%clk 0:00:20]} 29. bxc5 {[%clk 0:01:46]}  dxc5 {[%clk 0:00:21]} 30. Qf2 {[%clk 0:01:38]}  Qe5 {[%clk 0:00:19]} 31. Qxc5 {[%clk 0:01:31]}  Ng7 {[%clk 0:00:11]} 32. Qf8+ {[%clk 0:01:16]}  Ng8 {[%clk 0:00:11]} 33. Qf3 {[%clk 0:01:15]}  Nf6 {[%clk 0:00:06]} 34. c5 {[%clk 0:01:15]}  Nf5 {[%clk 0:00:03]} 35. Rf1 {[%clk 0:01:13]}  Ne3 {[%clk 0:00:01]} 36. Qxf6+ {[%clk 0:01:13]}  Qxf6 {[%clk 0:00:01]} 1-0


[Site "https://www.chess.com"]

[Event "Titled Tuesday Blitz January 03 Early 2023"]
[White "Dev, Shah"]
[Black "Ter-Sahakyan, Samvel"]
[WhiteFideId "35019058"]
[BlackFideId "13302531"]
[WhiteElo "2334"]
[BlackElo "2617"]
[Result "0-1"]
[Round "03"]
[TimeControl "180+2"]
[Date "2023.01.03"]
[WhiteClock "0:00:15"]
[BlackClock "0:02:11"]

1. d4 {[%clk 0:02:59]}  Nf6 {[%clk 0:02:59]} 2. c4 {[%clk 0:02:59]}  e6 {[%clk 0:03:00]} 3. g3 {[%clk 0:02:59]}  c5 {[%clk 0:02:58]} 4. d5 {[%clk 0:02:50]}  exd5 {[%clk 0:02:58]} 5. cxd5 {[%clk 0:02:51]}  d6 {[%clk 0:02:58]} 6. Nc3 {[%clk 0:02:50]}  g6 {[%clk 0:02:58]} 7. Nf3 {[%clk 0:02:50]}  Bg7 {[%clk 0:02:59]} 8. Bg2 {[%clk 0:02:49]}  O-O {[%clk 0:02:59]} 9. O-O {[%clk 0:02:50]}  Re8 {[%clk 0:02:58]} 10. Nd2 {[%clk 0:02:45]}  a6 {[%clk 0:02:44]} 11. a4 {[%clk 0:02:43]}  Nbd7 {[%clk 0:02:45]} 12. Nc4 {[%clk 0:02:40]}  Ne5 {[%clk 0:02:43]} 13. Nxe5 {[%clk 0:02:36]}  Rxe5 {[%clk 0:02:43]} 14. e4 {[%clk 0:02:32]}  Re8 {[%clk 0:02:41]} 15. h3 {[%clk 0:02:18]}  Rb8 {[%clk 0:02:40]} 16. a5 {[%clk 0:02:07]}  Nd7 {[%clk 0:02:40]} 17. Bf4 {[%clk 0:01:41]}  Ne5 {[%clk 0:02:39]} 18. Ra4 {[%clk 0:01:18]}  Bd7 {[%clk 0:02:38]} 19. Be3 {[%clk 0:01:08]}  Bxa4 {[%clk 0:02:37]} 20. Qxa4 {[%clk 0:01:04]}  b5 {[%clk 0:02:36]} 21. axb6 {[%clk 0:01:03]}  Rxb6 {[%clk 0:02:35]} 22. f4 {[%clk 0:00:56]}  Nd3 {[%clk 0:02:32]} 23. e5 {[%clk 0:00:35]}  dxe5 {[%clk 0:02:27]} 24. f5 {[%clk 0:00:32]}  e4 {[%clk 0:02:22]} 25. fxg6 {[%clk 0:00:25]}  hxg6 {[%clk 0:02:21]} 26. Nxe4 {[%clk 0:00:22]}  Rxb2 {[%clk 0:02:17]} 27. Qxa6 {[%clk 0:00:14]}  Rxg2+ {[%clk 0:02:11]} 28. Kxg2 {[%clk 0:00:15]}  Qxd5 {[%clk 0:02:11]} 0-1


[Site "https://www.chess.com"]